fUST/lending_fUST_20250718
["ID","MTS","AMOUNT","RATE_DAILY","PERIOD"]
[373068293,1752852642051,-460.0,0.00016759,2]
[373068295,1752852642060,-460.0,0.00016759,2]
[373068297,1752852642069,-460.0,0.00016759,2]
[373068299,1752852642079,-460.0,0.00016759,2]
[373068301,1752852642089,-460.0,0.00016759,2]
[373068303,1752852642098,-766.32,0.00016759,2]
[373068305,1752852642107,-460.0,0.00016759,2]
[373068307,1752852642117,-498.62436029,0.0001676,2]
[373068309,1752852642126,-460.0,0.0001676,2]
[373068311,1752852642137,-2075.58,0.0001676,2]
[373068313,1752852642147,-4966.78,0.0001676,2]
[373068315,1752852642156,-460.0,0.0001676,2]
[373068317,1752852642166,-460.0,0.0001676,2]
[373068319,1752852642175,-2411.26,0.0001676,2]
[373068321,1752852642184,-7695.17954686,0.00016813,2]
[373068323,1752852642194,-391.42,0.00017026,2]
[373068326,1752852642208,-460.0,0.00017027,2]
[373068328,1752852642217,-460.0,0.00017027,2]
[373068330,1752852642227,-2913.23,0.00017027,2]
[373068332,1752852642236,-460.0,0.00017028,2]
[373068333,1752852642245,-461.19291933,0.00017028,2]
[373068336,1752852642255,-604.29,0.00017028,2]
[373068337,1752852642264,-460.0,0.00017028,2]
[373068339,1752852642274,-460.0,0.00017028,2]
[373068341,1752852642285,-460.0,0.00017028,2]
[373068343,1752852642295,-460.0,0.00017028,2]
[373068345,1752852642307,-460.0,0.00017028,2]
[373068348,1752852642319,-1091.13,0.00017028,2]
[373068349,1752852642329,-460.0,0.00017028,2]
[373068352,1752852642339,-460.0,0.00017028,2]
[373068354,1752852642349,-460.0,0.00017028,2]
[373068356,1752852642359,-460.0,0.00017028,2]
[373068358,1752852642369,-2232.44,0.00017028,2]
[373068360,1752852642382,-460.0,0.00017028,2]
[373068362,1752852642395,-460.0,0.00017028,2]
[373068364,1752852642405,-460.0,0.00017028,2]
[373068365,1752852642414,-460.0,0.00017028,2]
[373068367,1752852642424,-460.0,0.00017028,2]
[373068369,1752852642433,-686.67,0.00017028,2]
[373068371,1752852642444,-460.0,0.00017028,2]
[373068374,1752852642456,-460.0,0.00017028,2]
[373068376,1752852642467,-750.33,0.00017029,2]
[373068378,1752852642478,-460.0,0.00017029,2]
[373068380,1752852642489,-460.0,0.00017029,2]
[373068381,1752852642499,-460.0,0.00017029,2]
[373068383,1752852642509,-460.0,0.00017029,2]
[373068385,1752852642518,-606.76,0.00017029,2]
[373068388,1752852642528,-460.0,0.00017029,2]
[373068390,1752852642542,-460.0,0.00017029,2]
[373068394,1752852642552,-460.0,0.00017029,2]
[373068396,1752852642562,-460.0,0.00017029,2]
[373068399,1752852642572,-460.0,0.00017029,2]
[373068402,1752852642581,-460.0,0.00017029,2]
[373068405,1752852642591,-460.0,0.00017029,2]
[373068407,1752852642600,-460.0,0.00017029,2]
[373068410,1752852642610,-460.0,0.00017029,2]
[373068411,1752852642620,-460.0,0.00017029,2]
[373068413,1752852642629,-460.0,0.00017029,2]
[373068415,1752852642638,-3953.97,0.00017029,2]
[373068417,1752852642648,-460.0,0.00017029,2]
[373068419,1752852642657,-1021.09,0.00017029,2]
[373068421,1752852642667,-687.08,0.00017029,2]
[373068423,1752852642676,-460.0,0.00017029,2]
[373068426,1752852642686,-460.0,0.00017029,2]
[373068427,1752852642695,-3082.93,0.00017029,2]
[373068429,1752852642705,-460.0,0.00017029,2]
[373068431,1752852642715,-3225.27,0.00017029,2]
[373068435,1752852642727,-460.0,0.00017029,2]
[373068436,1752852642738,-460.0,0.00017029,2]
[373068438,1752852642747,-460.0,0.00017029,2]
[373068442,1752852642757,-3801.97,0.00017029,2]
[373068444,1752852642766,-7609.22,0.00017029,2]
[373068447,1752852642777,-513.29054118,0.00017029,2]
[373068448,1752852642790,-460.0,0.00017029,2]
[373068451,1752852642801,-494.18,0.00017029,2]
[373068452,1752852642810,-460.0,0.00017029,2]
[373068454,1752852642820,-460.0,0.00017029,2]
[373068457,1752852642829,-460.0,0.00017029,2]
[373068459,1752852642839,-9076.24724223,0.0001703,2]
[373068461,1752852642848,-547.60928589,0.0001703,2]
[373068463,1752852642857,-460.0,0.0001703,2]
[373068465,1752852642867,-460.0,0.0001703,2]
[373068467,1752852642876,-324.0,0.0001703,2]
[373068469,1752852642886,-324.0,0.0001703,2]
[373068471,1752852642895,-324.0,0.0001703,2]
[373068472,1752852642904,-324.0,0.0001703,2]
[373068474,1752852642914,-324.0,0.0001703,2]
[373068476,1752852642923,-324.0,0.0001703,2]
[373068478,1752852642934,-324.0,0.0001703,2]
[373068480,1752852642944,-324.0,0.0001703,2]
[373068483,1752852642954,-324.0,0.0001703,2]
[373068484,1752852642964,-324.0,0.0001703,2]
[373068486,1752852642975,-324.0,0.0001703,2]
[373068488,1752852642985,-324.0,0.0001703,2]
[373068490,1752852642994,-324.0,0.0001703,2]
[373068493,1752852643004,-324.0,0.0001703,2]
[373068494,1752852643014,-324.0,0.0001703,2]
[373068496,1752852643023,-324.0,0.0001703,2]
[373068499,1752852643037,-324.0,0.0001703,2]
[373068500,1752852643047,-324.0,0.0001703,2]
[373068502,1752852643056,-324.0,0.0001703,2]
[373068505,1752852643066,-324.0,0.0001703,2]
[373068506,1752852643076,-324.0,0.0001703,2]
[373068509,1752852643085,-324.0,0.0001703,2]
[373068511,1752852643095,-324.0,0.0001703,2]
[373068512,1752852643104,-324.0,0.0001703,2]
[373068514,1752852643114,-324.0,0.0001703,2]
[373068516,1752852643123,-324.0,0.0001703,2]
[373068519,1752852643133,-324.0,0.0001703,2]
[373068520,1752852643142,-324.0,0.0001703,2]
[373068522,1752852643151,-324.0,0.0001703,2]
[373068524,1752852643161,-324.0,0.0001703,2]
[373068526,1752852643170,-324.0,0.0001703,2]
[373068528,1752852643180,-324.0,0.0001703,2]
[373068530,1752852643189,-324.0,0.0001703,2]
[373068532,1752852643198,-324.0,0.0001703,2]
[373068534,1752852643207,-324.0,0.0001703,2]
[373068536,1752852643217,-324.0,0.0001703,2]
[373068538,1752852643226,-324.0,0.0001703,2]
[373068540,1752852643235,-324.0,0.0001703,2]
[373068543,1752852643245,-324.0,0.0001703,2]
[373068546,1752852643254,-324.0,0.0001703,2]
[373068549,1752852643264,-324.0,0.0001703,2]
[373068551,1752852643273,-324.0,0.0001703,2]
[373068553,1752852643286,-324.0,0.0001703,2]
[373068555,1752852643296,-324.0,0.0001703,2]
[373068557,1752852643306,-324.0,0.0001703,2]
[373068559,1752852643315,-324.0,0.0001703,2]
[373068561,1752852643325,-324.0,0.0001703,2]
[373068563,1752852643334,-324.0,0.0001703,2]
[373068565,1752852643344,-324.0,0.0001703,2]
[373068567,1752852643354,-324.0,0.0001703,2]
[373068569,1752852643364,-324.0,0.0001703,2]
[373068571,1752852643373,-324.0,0.0001703,2]
[373068573,1752852643383,-324.0,0.0001703,2]
[373068575,1752852643392,-324.0,0.0001703,2]
[373068577,1752852643402,-324.0,0.0001703,2]
[373068579,1752852643411,-324.0,0.0001703,2]
[373068581,1752852643420,-324.0,0.0001703,2]
[373068582,1752852643430,-324.0,0.0001703,2]
[373068584,1752852643440,-234.64338342,0.0001703,2]
[373068586,1752852643450,-324.0,0.0001703,2]
[373068588,1752852643459,-324.0,0.0001703,2]
[373068590,1752852643469,-324.0,0.0001703,2]
[373068592,1752852643478,-324.0,0.0001703,2]
[373068594,1752852643489,-324.0,0.0001703,2]
[373068596,1752852643499,-324.0,0.0001703,2]
[373068598,1752852643509,-324.0,0.0001703,2]
[373068600,1752852643519,-324.0,0.0001703,2]
[373068602,1752852643530,-278.54510186,0.0001703,2]
[373068604,1752852643543,-160.0,0.0001703,2]
[373068606,1752852643553,-160.0,0.0001703,2]
[373068608,1752852643562,-160.0,0.0001703,2]
[373068611,1752852643571,-1752.0,0.0001703,2]
[373068612,1752852643581,-160.93346759,0.0001703,2]
[373068614,1752852643590,-1752.0,0.0001703,2]
[373068616,1752852643600,-1752.0,0.0001703,2]
[373068618,1752852643610,-1752.0,0.0001703,2]
[373068621,1752852643620,-154.0,0.0001703,2]
[373068622,1752852643631,-154.0,0.0001703,2]
[373068624,1752852643641,-255.74324676,0.0001703,2]
[373068626,1752852643651,-1752.0,0.0001703,2]
[373068628,1752852643660,-154.0,0.0001703,2]
[373068631,1752852643671,-1752.0,0.0001703,2]
[373068633,1752852643681,-1752.0,0.0001703,2]
[373068634,1752852643690,-1752.0,0.0001703,2]
[373068636,1752852643699,-1752.0,0.0001703,2]
[373068638,1752852643709,-1752.0,0.0001703,2]
[373068640,1752852643719,-1752.0,0.0001703,2]
[373068642,1752852643734,-1752.0,0.0001703,2]
[373068644,1752852643743,-1752.0,0.0001703,2]
[373068646,1752852643753,-1752.0,0.0001703,2]
[373068648,1752852643762,-324.0,0.0001703,2]
[373068659,1752852643772,-1752.0,0.0001703,2]
[373068661,1752852643868,-324.0,0.0001703,2]
[373068663,1752852643877,-1752.0,0.0001703,2]
[373068665,1752852643887,-1752.0,0.0001703,2]
[373068667,1752852643896,-324.0,0.0001703,2]
[373068669,1752852643906,-1752.0,0.0001703,2]
[373068671,1752852643916,-324.0,0.0001703,2]
[373068673,1752852643925,-324.0,0.0001703,2]
[373068675,1752852643935,-1752.0,0.0001703,2]
[373068677,1752852643944,-324.0,0.0001703,2]
[373068679,1752852643953,-324.0,0.0001703,2]
[373068681,1752852643962,-1752.0,0.0001703,2]
[373068683,1752852643972,-1752.0,0.0001703,2]
[373068685,1752852643982,-1752.0,0.0001703,2]
[373068687,1752852643991,-1752.0,0.0001703,2]
[373068688,1752852644000,-1752.0,0.0001703,2]
[373068690,1752852644010,-1752.0,0.0001703,2]
[373068692,1752852644020,-1752.0,0.0001703,2]
[373068695,1752852644030,-1752.0,0.0001703,2]
[373068699,1752852644046,-1752.0,0.0001703,2]
[373068700,1752852644055,-1752.0,0.0001703,2]
[373068702,1752852644065,-1752.0,0.0001703,2]
[373068704,1752852644074,-1752.0,0.0001703,2]
[373068706,1752852644084,-1752.0,0.0001703,2]
[373068708,1752852644093,-1752.0,0.0001703,2]
[373068710,1752852644103,-4821.87,0.0001703,2]
[373068712,1752852644113,-1752.0,0.0001703,2]
[373068714,1752852644122,-1752.0,0.0001703,2]
[373068717,1752852644135,-1752.0,0.0001703,2]
[373068719,1752852644145,-1752.0,0.0001703,2]
[373068720,1752852644155,-1752.0,0.0001703,2]
[373068722,1752852644164,-1752.0,0.0001703,2]
[373068724,1752852644174,-1752.0,0.0001703,2]
[373068726,1752852644183,-1752.0,0.0001703,2]
[373068728,1752852644194,-1752.0,0.0001703,2]
[373068730,1752852644204,-1752.0,0.0001703,2]
[373068732,1752852644214,-1752.0,0.0001703,2]
[373068735,1752852644224,-1752.0,0.0001703,2]
[373068737,1752852644233,-1752.0,0.0001703,2]
[373068739,1752852644243,-1752.0,0.0001703,2]
[373068740,1752852644252,-1752.0,0.0001703,2]
[373068742,1752852644262,-1752.0,0.0001703,2]
[373068744,1752852644271,-1752.0,0.0001703,2]
[373068747,1752852644281,-1752.0,0.0001703,2]
[373068749,1752852644295,-1752.0,0.0001703,2]
[373068751,1752852644305,-1752.0,0.0001703,2]
[373068752,1752852644315,-1752.0,0.0001703,2]
[373068753,1752852644324,-1752.0,0.0001703,2]
[373068754,1752852644333,-1752.0,0.0001703,2]
[373068755,1752852644342,-1752.0,0.0001703,2]
[373068756,1752852644351,-1752.0,0.0001703,2]
[373068757,1752852644360,-1752.0,0.0001703,2]
[373068758,1752852644369,-1752.0,0.0001703,2]
[373068759,1752852644378,-1752.0,0.0001703,2]
[373068760,1752852644387,-1752.0,0.0001703,2]
[373068761,1752852644396,-1752.0,0.0001703,2]
[373068762,1752852644405,-1752.0,0.0001703,2]
[373068763,1752852644414,-1752.0,0.0001703,2]
[373068764,1752852644423,-1752.0,0.0001703,2]
[373068765,1752852644432,-1336.31498431,0.0001703,2]
[373068766,1752852644442,-1525.21,0.0001703,2]
[373068767,1752852644451,-2237.88,0.0001703,2]
[373068768,1752852644460,-3358.29,0.0001703,2]
[373068769,1752852644469,-160.0,0.0001703,2]
[373068770,1752852644478,-1752.0,0.0001703,2]
[373068771,1752852644487,-1752.0,0.0001703,2]
[373068772,1752852644498,-324.0,0.0001703,2]
[373068773,1752852644507,-324.0,0.0001703,2]
[373068774,1752852644516,-324.0,0.0001703,2]
[373068775,1752852644526,-324.0,0.0001703,2]
[373068776,1752852644538,-324.0,0.0001703,2]
[373068777,1752852644547,-324.0,0.0001703,2]
[373068778,1752852644556,-324.0,0.0001703,2]
[373068779,1752852644565,-324.0,0.0001703,2]
[373068780,1752852644574,-324.0,0.0001703,2]
[373068781,1752852644583,-460.0,0.00017033,2]
[373068782,1752852644592,-460.0,0.00017033,2]
[373068783,1752852644601,-460.0,0.00017033,2]
[373068784,1752852644610,-460.0,0.00017033,2]
[373068785,1752852644620,-460.0,0.00017033,2]
[373068787,1752852644629,-460.0,0.00017033,2]
[373068789,1752852644639,-460.0,0.00017033,2]
[373068791,1752852644648,-1379.08,0.00017033,2]
[373068793,1752852644658,-460.0,0.00017033,2]
[373068795,1752852644667,-460.0,0.00017033,2]
[373068797,1752852644677,-460.0,0.00017033,2]
[373068799,1752852644686,-460.0,0.00017033,2]
[373068801,1752852644695,-1026.25,0.00017033,2]
[373068803,1752852644705,-460.0,0.00017033,2]
[373068805,1752852644714,-460.0,0.00017033,2]
[373068807,1752852644725,-460.0,0.00017033,2]
[373068808,1752852644738,-460.0,0.00017033,2]
[373068810,1752852644747,-460.0,0.00017033,2]
[373068812,1752852644757,-460.0,0.00017033,2]
[373068814,1752852644767,-656.14,0.00017033,2]
[373068817,1752852644776,-460.0,0.00017033,2]
[373068818,1752852644787,-460.0,0.00017033,2]
[373068820,1752852644797,-533.73,0.00017033,2]
[373068822,1752852644807,-460.0,0.00017033,2]
[373068824,1752852644816,-460.0,0.00017033,2]
[373068826,1752852644828,-460.0,0.00017033,2]
[373068828,1752852644837,-460.0,0.00017033,2]
[373068830,1752852644847,-460.0,0.00017033,2]
[373068832,1752852644856,-1148.62,0.00017033,2]
[373068834,1752852644865,-460.0,0.00017033,2]
[373068836,1752852644874,-1315.07,0.00017033,2]
[373068838,1752852644884,-535.63,0.00017033,2]
[373068840,1752852644895,-697.81,0.00017033,2]
[373068842,1752852644904,-460.0,0.00017033,2]
[373068844,1752852644914,-460.0,0.00017033,2]
[373068846,1752852644923,-766.32,0.00017033,2]
[373068848,1752852644933,-1504.61,0.00017033,2]
[373068850,1752852644942,-460.0,0.00017034,2]
[373068852,1752852644951,-2075.58,0.00017034,2]
[373068854,1752852644961,-4966.78,0.00017034,2]
[373068856,1752852644970,-460.0,0.00017034,2]
[373068858,1752852644980,-2411.26,0.00017034,2]
[373068860,1752852644989,-500.0,0.00017073,2]
[373068863,1752852645001,-500.0,0.00017073,2]
[373068864,1752852645012,-500.0,0.00017073,2]
[373068867,1752852645022,-500.0,0.00017073,2]
[373068868,1752852645031,-501.17731979,0.00017073,2]
[373068870,1752852645043,-501.99323963,0.00017073,2]
[373068872,1752852645053,-500.0,0.00017073,2]
[373068874,1752852645062,-500.0,0.00017073,2]
[373068877,1752852645072,-458.25357939,0.00017073,2]
[373068879,1752852645082,-511.33106895,0.00017073,2]
[373068881,1752852645091,-500.0,0.00017073,2]
[373068883,1752852645101,-501.15315688,0.00017073,2]
[373068884,1752852645110,-500.0,0.00017073,2]
[373068886,1752852645120,-447.25412963,0.00017073,2]
[373068889,1752852645130,-500.0,0.00017073,2]
[373068890,1752852645139,-500.0,0.00017073,2]
[373068892,1752852645149,-500.0,0.00017073,2]
[373068894,1752852645158,-697.81,0.00017138,2]
[373068896,1752852645169,-78126.82692721,0.00017208,2]
[373068898,1752852645179,-259.195109,0.00017208,2]
[373068901,1752852645188,-151.0,0.00017208,2]
[373068903,1752852645198,-151.0,0.00017208,2]
[373068904,1752852645208,-2567.83025201,0.00017271,2]
[373068907,1752852645218,-460.0,0.00017301,2]
[373068909,1752852645228,-2913.23,0.00017301,2]
[373068911,1752852645238,-460.0,0.00017302,2]
[373068912,1752852645248,-604.29,0.00017302,2]
[373068914,1752852645257,-460.0,0.00017302,2]
[373068916,1752852645267,-460.0,0.00017302,2]
[373068918,1752852645277,-460.0,0.00017302,2]
[373068920,1752852645290,-460.0,0.00017302,2]
[373068922,1752852645300,-1091.13,0.00017302,2]
[373068924,1752852645310,-509.65264601,0.00017302,2]
[373068927,1752852645319,-460.0,0.00017302,2]
[373068928,1752852645329,-460.0,0.00017302,2]
[373068930,1752852645339,-460.0,0.00017302,2]
[373068932,1752852645348,-2232.44,0.00017302,2]
[373068934,1752852645357,-460.0,0.00017302,2]
[373068936,1752852645367,-460.0,0.00017302,2]
[373068938,1752852645376,-460.0,0.00017302,2]
[373068940,1752852645386,-697.81,0.00017302,2]
[373068942,1752852645396,-686.67,0.00017302,2]
[373068944,1752852645406,-750.33,0.00017303,2]
[373068946,1752852645415,-460.0,0.00017303,2]
[373068948,1752852645425,-606.76,0.00017303,2]
[373068950,1752852645435,-460.0,0.00017303,2]
[373068952,1752852645444,-460.0,0.00017303,2]
[373068954,1752852645453,-153.83690913,0.00017303,2]
[373068956,1752852645463,-460.0,0.00017303,2]
[373068958,1752852645473,-502.49,0.00017303,2]
[373068960,1752852645482,-460.0,0.00017303,2]
[373068962,1752852645491,-460.0,0.00017303,2]
[373068964,1752852645501,-460.0,0.00017303,2]
[373068966,1752852645510,-460.0,0.00017303,2]
[373068968,1752852645520,-3953.97,0.00017303,2]
[373068970,1752852645529,-356.48988293,0.00017303,2]
[373068972,1752852645542,-1021.09,0.00017303,2]
[373068975,1752852645551,-687.08,0.00017303,2]
[373068988,1752852645643,-460.0,0.00017303,2]
[373068990,1752852645653,-460.0,0.00017303,2]
[373068992,1752852645663,-3082.93,0.00017303,2]
[373068994,1752852645672,-460.0,0.00017303,2]
[373068996,1752852645682,-3225.27,0.00017303,2]
[373068998,1752852645691,-460.0,0.00017303,2]
[373069000,1752852645700,-460.0,0.00017303,2]
[373069003,1752852645710,-460.0,0.00017303,2]
[373069005,1752852645720,-3801.97,0.00017303,2]
[373069007,1752852645733,-7609.22,0.00017303,2]
[373069009,1752852645743,-274.7616278,0.00017303,2]
[373069011,1752852645752,-494.18,0.00017303,2]
[373069013,1752852645762,-460.0,0.00017303,2]
[373069015,1752852645772,-460.0,0.00017304,2]
[373069017,1752852645782,-460.0,0.00017304,2]
[373069019,1752852645796,-4821.87,0.00017304,2]
[373069021,1752852645810,-1525.21,0.00017304,2]
[373069023,1752852645821,-2237.88,0.00017304,2]
[373069025,1752852645831,-3358.29,0.00017304,2]
[373069027,1752852645841,-460.0,0.00017307,2]
[373069029,1752852645853,-460.0,0.00017307,2]
[373069031,1752852645862,-460.0,0.00017307,2]
[373069033,1752852645872,-460.0,0.00017307,2]
[373069035,1752852645881,-460.0,0.00017307,2]
[373069037,1752852645892,-460.0,0.00017307,2]
[373069039,1752852645902,-460.0,0.00017307,2]
[373069041,1752852645911,-1379.08,0.00017307,2]
[373069043,1752852645922,-460.0,0.00017307,2]
[373069046,1752852645931,-460.0,0.00017307,2]
[373069048,1752852645941,-460.0,0.00017307,2]
[373069050,1752852645951,-460.0,0.00017307,2]
[373069051,1752852645961,-1026.25,0.00017307,2]
[373069053,1752852645971,-460.0,0.00017307,2]
[373069055,1752852645980,-460.0,0.00017307,2]
[373069057,1752852645989,-460.0,0.00017307,2]
[373069059,1752852645999,-656.14,0.00017307,2]
[373069061,1752852646008,-517.44,0.00017307,2]
[373069063,1752852646018,-460.0,0.00017307,2]
[373069065,1752852646027,-533.73,0.00017307,2]
[373069067,1752852646040,-460.0,0.00017307,2]
[373069069,1752852646050,-460.0,0.00017307,2]
[373069071,1752852646060,-460.0,0.00017307,2]
[373069073,1752852646069,-460.0,0.00017307,2]
[373069075,1752852646079,-460.0,0.00017307,2]
[373069077,1752852646088,-1148.62,0.00017307,2]
[373069079,1752852646098,-460.0,0.00017307,2]
[373069081,1752852646107,-1315.07,0.00017307,2]
[373069083,1752852646117,-535.63,0.00017307,2]
[373069085,1752852646127,-460.0,0.00017307,2]
[373069087,1752852646136,-460.0,0.00017307,2]
[373069089,1752852646147,-766.32,0.00017307,2]
[373069091,1752852646156,-1504.61,0.00017307,2]
[373069093,1752852646166,-460.0,0.00017308,2]
[373069095,1752852646176,-2075.58,0.00017308,2]
[373069097,1752852646185,-4966.78,0.00017308,2]
[373069099,1752852646195,-460.0,0.00017308,2]
[373069101,1752852646204,-2411.26,0.00017308,2]
[373069103,1752852646214,-697.81,0.00017309,2]
[373069105,1752852646223,-500.0,0.00017381,2]
[373069107,1752852646233,-500.0,0.00017538,2]
[373069109,1752852646243,-460.0,0.00017575,2]
[373069111,1752852646253,-2913.23,0.00017575,2]
[373069113,1752852646262,-460.0,0.00017576,2]
[373069115,1752852646272,-604.29,0.00017576,2]
[373069117,1752852646281,-460.0,0.00017576,2]
[373069119,1752852646296,-414.04,0.00017576,2]
[373069122,1752852646305,-460.0,0.00017576,2]
[373069125,1752852646316,-460.0,0.00017576,2]
[373069128,1752852646326,-1091.13,0.00017576,2]
[373069131,1752852646336,-460.0,0.00017576,2]
[373069134,1752852646345,-194.1,0.00017576,2]
[373069137,1752852646355,-2232.44,0.00017576,2]
[373069140,1752852646364,-460.0,0.00017576,2]
[373069142,1752852646374,-487.38731052,0.00017576,2]
[373069144,1752852646383,-460.0,0.00017576,2]
[373069146,1752852646393,-697.81,0.00017576,2]
[373069148,1752852646402,-686.67,0.00017576,2]
[373069150,1752852646412,-750.33,0.00017577,2]
[373069152,1752852646422,-460.0,0.00017577,2]
[373069154,1752852646432,-606.76,0.00017577,2]
[373069156,1752852646441,-460.0,0.00017577,2]
[373069158,1752852646452,-460.0,0.00017577,2]
[373069161,1752852646470,-460.0,0.00017577,2]
[373069164,1752852646486,-460.0,0.00017577,2]
[373069166,1752852646498,-460.0,0.00017577,2]
[373069169,1752852646513,-460.0,0.00017577,2]
[373069171,1752852646527,-3953.97,0.00017577,2]
[373069174,1752852646549,-1021.09,0.00017577,2]
[373069176,1752852646563,-687.08,0.00017577,2]
[373069179,1752852646579,-460.0,0.00017577,2]
[373069181,1752852646592,-263.7,0.00017577,2]
[373069184,1752852646607,-3082.93,0.00017577,2]
[373069186,1752852646621,-460.0,0.00017577,2]
[373069189,1752852646635,-3225.27,0.00017577,2]
[373069191,1752852646648,-460.0,0.00017577,2]
[373069193,1752852646661,-460.0,0.00017577,2]
[373069196,1752852646674,-460.0,0.00017577,2]
[373069198,1752852646688,-3801.97,0.00017577,2]
[373069201,1752852646702,-7609.22,0.00017577,2]
[373069203,1752852646719,-494.18,0.00017577,2]
[373069206,1752852646739,-460.0,0.00017577,2]
[373069208,1752852646753,-524.93,0.00017578,2]
[373069210,1752852646764,-460.0,0.00017578,2]
[373069212,1752852646775,-4821.87,0.00017578,2]
[373069215,1752852646794,-1525.21,0.00017578,2]
[373069217,1752852646809,-2237.88,0.00017578,2]
[373069219,1752852646821,-3358.29,0.00017578,2]
[373069222,1752852646835,-460.0,0.00017581,2]
[373069224,1752852646850,-548.8523063,0.00017581,2]
[373069227,1752852646862,-460.0,0.00017581,2]
[373069229,1752852646875,-352.21,0.00017581,2]
[373069231,1752852646888,-460.0,0.00017581,2]
[373069233,1752852646900,-460.0,0.00017581,2]
[373069236,1752852646913,-441.44706166,0.00017581,2]
[373069238,1752852646925,-1379.08,0.00017581,2]
[373069240,1752852646938,-460.0,0.00017581,2]
[373069242,1752852646951,-460.0,0.00017581,2]
[373069245,1752852646963,-460.0,0.00017581,2]
[373069247,1752852646976,-460.0,0.00017581,2]
[373069249,1752852646987,-1026.25,0.00017581,2]
[373069252,1752852646999,-460.0,0.00017581,2]
[373069253,1752852647012,-229.55,0.00017581,2]
[373069254,1752852647023,-656.14,0.00017581,2]
[373069255,1752852647036,-460.0,0.00017581,2]
[373069256,1752852647050,-533.73,0.00017581,2]
[373069257,1752852647062,-460.0,0.00017581,2]
[373069258,1752852647074,-347.69048042,0.00017581,2]
[373069260,1752852647088,-460.0,0.00017581,2]
[373069263,1752852647112,-460.0,0.00017581,2]
[373069266,1752852647133,-1148.62,0.00017581,2]
[373069269,1752852647150,-460.0,0.00017581,2]
[373069272,1752852647166,-1315.07,0.00017581,2]
[373069274,1752852647182,-535.63,0.00017581,2]
[373069277,1752852647197,-460.0,0.00017581,2]
[373069280,1752852647212,-460.0,0.00017581,2]
[373069282,1752852647227,-766.32,0.00017581,2]
[373069285,1752852647241,-1504.61,0.00017581,2]
[373069287,1752852647254,-460.0,0.00017582,2]
[373069290,1752852647267,-2075.58,0.00017582,2]
[373069292,1752852647281,-4966.78,0.00017582,2]
[373069294,1752852647302,-151.0,0.00017582,2]
[373069297,1752852647315,-151.0,0.00017582,2]
[373069299,1752852647328,-151.0,0.00017582,2]
[373069302,1752852647341,-460.0,0.00017582,2]
[373069304,1752852647354,-2411.26,0.00017582,2]
[373069307,1752852647367,-697.81,0.00017583,2]
[373069309,1752852647380,-500.0,0.00017609,2]
[373069311,1752852647394,-516.60124703,0.00017621,2]
[373069314,1752852647408,-1000.0,0.00017621,2]
[373069316,1752852647421,-680.07601105,0.00017621,2]
[373069318,1752852647434,-842.96839752,0.00017621,2]
[373069320,1752852647447,-1000.0,0.00017621,2]